bitfinex-derivatives/quotes_SOLF0:USTF0_20260118
["timestamp","ask_amount","ask_price","bid_price","bid_amount"]
[1768761053923,10.5762361,142.7,142.65,0.04482368]
[1768761060927,16.8854361,142.7,142.65,0.04482368]
[1768761062331,10.5762361,142.7,142.65,0.04482368]
[1768761064530,0.05208902,142.7,142.65,10.94977526]
[1768761068629,0.05208902,142.7,142.66,6.3108]
[1768761069225,10.52414708,142.72,142.66,6.3108]
[1768761069432,10.52414708,142.72,142.66,17.21575158]
[1768761070736,10.52414708,142.72,142.66,6.3108]
[1768761071432,0.051317,142.7,142.66,6.3108]
[1768761072440,0.051317,142.7,142.65,124.94977526]
[1768761073936,10.57546408,142.7,142.65,0.04482368]
[1768761076139,0.051317,142.7,142.65,10.94977526]
[1768761077733,0.051317,142.7,142.65,17.26097526]
[1768761078639,0.051317,142.7,142.66,10.90495158]
[1768761082754,0.051317,142.7,142.65,6.35602368]
[1768761082755,10.26960181,142.7,142.65,0.04482368]
[1768761091652,0.051317,142.7,142.65,18.03362944]
[1768761091845,10.21828481,142.72,142.66,9.91609901]
[1768761097053,10.21828481,142.72,142.65,0.04482368]
[1768761097260,11.97979156,142.72,142.65,0.04482368]
[1768761098160,10.21828481,142.72,142.65,0.04482368]
[1768761099657,16.52658481,142.72,142.65,0.04482368]
[1768761099960,10.63768307,142.71,142.65,0.04482368]
[1768761100662,16.94648307,142.71,142.65,0.04482368]
[1768761100958,10.63768307,142.7,142.65,0.04482368]
[1768761104160,10.63768307,142.69,142.61,20.57069302]
[1768761104357,10.63768307,142.69,142.61,124.284794]
[1768761104563,10.63768307,142.69,142.61,126.04630075]
[1768761105869,6.3102,142.68,142.61,126.04630075]
[1768761106363,6.3102,142.68,142.61,124.284794]
[1768761106565,10.63768307,142.67,142.6,122.52439227]
[1768761106758,10.63768307,142.66,142.59,10.284794]
[1768761107456,10.63768307,142.65,142.59,10.284794]
[1768761107761,10.63768307,142.65,142.57,124.284794]
[1768761108467,10.63768307,142.65,142.57,126.04630075]
[1768761108858,10.63768307,142.65,142.6,0.04605028]
[1768761110464,16.94918307,142.65,142.6,0.04605028]
[1768761110861,10.63768307,142.64,142.6,0.04605028]
[1768761111764,16.94958307,142.64,142.6,0.04605028]
[1768761111968,10.63768307,142.63,142.55,10.284794]
[1768761112162,10.63768307,142.63,142.55,126.04630075]
[1768761113163,10.63768307,142.63,142.56,10.46933798]
[1768761113963,10.05084968,142.62,142.56,10.46933798]
[1768761114569,0.04529438,142.6,142.56,10.46933798]
[1768761114971,10.05084968,142.64,142.58,10.46933798]
[1768761116775,16.36274968,142.64,142.6,0.04723063]
[1768761117069,16.36274968,142.64,142.58,10.46933798]
[1768761117371,16.36274968,142.64,142.56,1.76150675]
[1768761117372,0.04787255,142.62,142.56,10.46933798]
[1768761117569,0.04787255,142.62,142.56,12.23084473]
[1768761117766,0.04787255,142.62,142.56,10.46933798]
[1768761117963,0.04787255,142.62,142.56,12.23084473]
[1768761118363,0.04787255,142.62,142.56,10.46933798]
[1768761118563,0.04787255,142.62,142.56,12.23084473]
[1768761118763,10.09872223,142.62,142.56,10.46933798]
[1768761119262,10.05084968,142.61,142.52,275.48933798]
[1768761119458,10.05084968,142.61,142.52,389.48933798]
[1768761119765,10.05084968,142.61,142.54,1.76150675]
[1768761119966,16.36414968,142.61,142.54,12.23084473]
[1768761120159,0.04584496,142.58,142.54,12.23084473]
[1768761120368,0.04584496,142.58,142.54,10.46933798]
[1768761120568,10.09669464,142.58,142.52,10.46933798]
[1768761120972,0.04584496,142.58,142.52,12.23084473]
[1768761121174,0.04584496,142.58,142.52,10.46933798]
[1768761121872,16.36364968,142.62,142.54,10.46933798]
[1768761122066,16.36364968,142.62,142.54,12.23084473]
[1768761122876,10.05084968,142.62,142.54,12.23084473]
[1768761123382,10.05084968,142.62,142.55,10.46933798]
[1768761123875,10.05084968,142.62,142.57,0.04922225]
[1768761128470,11.81235643,142.62,142.54,114.0]
[1768761128669,11.81235643,142.62,142.53,10.46933798]
[1768761128670,11.81235643,142.62,142.53,12.23084473]
[1768761129779,6.3138,142.6,142.53,12.23084473]
[1768761129979,0.04912561,142.59,142.53,12.23084473]
[1768761132174,0.04912561,142.59,142.55,10.46933798]
[1768761132980,0.04912561,142.59,142.53,10.46933798]
[1768761133882,10.09997529,142.59,142.51,147.33026889]
[1768761134077,10.05084968,142.57,142.48,1.76150675]
[1768761134283,10.05084968,142.57,142.48,12.23084473]
[1768761134579,10.05084968,142.57,142.5,1.76150675]
[1768761134780,16.36514968,142.59,142.5,12.23084473]
[1768761135684,16.36514968,142.59,142.51,1.76150675]
[1768761135886,16.36514968,142.59,142.51,12.23084473]
[1768761136381,16.36514968,142.59,142.54,0.04425768]
[1768761142686,6.3143,142.59,142.54,0.04425768]
[1768761144184,16.45453499,142.59,142.54,0.04425768]
[1768761144781,6.3145,142.58,142.54,0.04425768]
[1768761144981,16.45473499,142.58,142.54,0.04425768]
[1768761156404,10.14023499,142.57,142.54,0.04425768]
[1768761157713,10.38633391,142.56,142.5,114.0]
[1768761157906,10.38633391,142.56,142.49,132.04663872]
[1768761158509,10.38633391,142.56,142.5,9.96414276]
[1768761159012,0.05196546,142.54,142.5,9.96414276]
[1768761161111,0.05196546,142.54,142.48,11.72833872]
[1768761162214,0.05196546,142.54,142.48,9.96414276]
[1768761162416,10.43829937,142.54,142.48,9.96414276]
[1768761168904,10.43829937,142.54,142.48,16.28284276]
[1768761173219,10.43829937,142.54,142.46,16.92324219]
[1768761173425,12.20249533,142.54,142.46,16.92324219]
[1768761173816,12.15052987,142.54,142.46,16.92324219]
[1768761174010,0.04970012,142.51,142.46,16.92324219]
[1768761174820,98.2209,142.59,142.48,10.60374219]
[1768761174821,10.20291334,142.55,142.48,10.60374219]
[1768761175024,11.9671093,142.55,142.48,10.60374219]
[1768761176316,11.9671093,142.55,142.5,0.05343544]
[1768761176519,11.9671093,142.57,142.5,10.65717763]
[1768761176920,11.9671093,142.57,142.5,10.60374219]
[1768761177522,11.9671093,142.57,142.52,0.05051967]
[1768761178024,10.20291334,142.56,142.52,0.05051967]
[1768761180632,12.01460864,142.55,142.48,124.60374219]
[1768761180831,12.01460864,142.55,142.48,10.60374219]
[1768761181034,10.25041268,142.55,142.48,10.60374219]
[1768761183429,10.25041268,142.55,142.48,12.36793815]
[1768761184336,10.25041268,142.55,142.49,10.60374219]
[1768761186643,10.20291334,142.54,142.48,114.0]
[1768761187838,10.20291334,142.54,142.48,124.60374219]
[1768761187839,16.51921334,142.54,142.48,124.60374219]
[1768761190036,10.20291334,142.53,142.48,124.60374219]
[1768761190336,10.20291334,142.53,142.48,10.60374219]
[1768761190933,0.04678739,142.52,142.48,10.60374219]
[1768761202144,10.20291334,142.57,142.48,12.36793815]
[1768761202334,10.20291334,142.57,142.5,10.08781208]
[1768761203541,10.20291334,142.57,142.52,0.04460351]
[1768761203740,16.51801334,142.57,142.52,0.04460351]
[1768761209745,9.7400702,142.56,142.52,0.04460351]
[1768761210544,16.0554702,142.56,142.52,0.04460351]
[1768761210853,9.7400702,142.55,142.52,0.04460351]
[1768761211950,9.7400702,142.54,142.49,114.0]
[1768761212148,9.7400702,142.54,142.48,10.08781208]
[1768761213455,0.04491572,142.52,142.48,10.08781208]
[1768761213646,9.7400702,142.54,142.5,0.0453335]
[1768761217049,10.27432992,142.56,142.5,0.0453335]
[1768761217250,16.58952992,142.57,142.5,9.81289662]
[1768761217555,10.27432992,142.56,142.5,9.81289662]
[1768761219655,10.27432992,142.58,142.5,9.81289662]
[1768761220261,10.27432992,142.58,142.5,11.5321932]
[1768761220548,10.27432992,142.6,142.53,9.81311705]
[1768761221053,10.27432992,142.6,142.53,9.76756312]
[1768761221450,10.27432992,142.6,142.55,0.04977937]
[1768761223452,10.27432992,142.62,142.55,9.81734249]
[1768761223656,10.27432992,142.64,142.56,11.5321932]
[1768761223864,10.27432992,142.64,142.56,9.76756312]
[1768761224053,12.03896,142.64,142.56,9.76756312]
[1768761225153,12.03896,142.64,142.59,0.04577635]
[1768761225856,10.32691577,142.63,142.59,0.04577635]
[1768761233362,0.05258585,142.63,142.59,10.64683679]
[1768761233553,9.79298343,142.65,142.59,10.64683679]
[1768761233758,9.79298343,142.67,142.59,10.64683679]
[1768761234757,9.79298343,142.67,142.6,6.3133]
[1768761235553,9.79298343,142.67,142.62,0.04902667]
[1768761240366,9.79298343,142.67,142.59,10.60106044]
[1768761240367,11.55761351,142.66,142.59,10.60106044]
[1768761240767,11.55761351,142.66,142.57,114.0]
[1768761241069,9.79298343,142.63,142.57,114.0]
[1768761241264,9.79298343,142.63,142.56,10.60106044]
[1768761241767,9.79298343,142.63,142.58,10.64939842]
[1768761244071,9.79298343,142.65,142.58,12.4140285]
[1768761245178,9.79298343,142.65,142.59,10.60106044]
[1768761248086,16.10368343,142.67,142.59,10.60106044]
[1768761248890,16.10368343,142.67,142.62,0.05204278]
[1768761250183,1.22036751,142.71,142.63,10.60106044]
[1768761250481,9.79298343,142.74,142.65,12.36569052]
[1768761251181,9.79298343,142.74,142.68,0.04744568]
[1768761254084,0.04886125,142.72,142.68,0.04744568]
[1768761261592,9.84184468,142.72,142.68,0.04744568]
[1768761262887,9.84184468,142.72,142.65,10.60106044]
[1768761266892,9.84184468,142.72,142.64,1.76121186]
[1768761267285,9.84184468,142.72,142.64,12.25752672]
[1768761267900,10.03845817,142.7,142.64,10.49631486]
[1768761268798,0.04633225,142.68,142.64,10.49631486]
[1768761269699,0.04633225,142.68,142.65,0.04699917]
[1768761270002,10.03845817,142.73,142.67,10.49631486]
[1768761270294,10.03845817,142.73,142.65,12.30452589]
[1768761270496,10.03845817,142.73,142.66,10.49631486]
[1768761271300,10.03845817,142.73,142.68,0.05313311]
[1768761273002,10.03845817,142.75,142.68,10.54944797]
[1768761274995,10.03845817,142.75,142.68,12.31065983]
[1768761275891,10.03845817,142.75,142.68,10.54944797]
[1768761279910,0.05074262,142.73,142.68,10.54944797]
[1768761280600,8.06741186,142.77,142.68,10.54944797]
[1768761280601,9.73167203,142.76,142.68,125.81987204]
[1768761280801,9.73167203,142.76,142.68,11.81987204]
[1768761281007,9.73167203,142.76,142.68,11.76673893]
[1768761282213,9.73167203,142.76,142.71,0.04669974]
[1768761283304,1.76121186,142.77,142.71,10.05222681]
[1768761283706,11.49288389,142.77,142.71,10.05222681]
[1768761285210,17.79908389,142.77,142.71,0.04669974]
[1768761285512,9.73167203,142.76,142.71,0.04669974]
[1768761291112,9.73167203,142.76,142.67,11.76673893]
[1768761291308,9.73167203,142.76,142.67,125.76673893]
[1768761291818,9.73167203,142.76,142.68,10.00552707]
[1768761292414,9.73167203,142.76,142.71,0.04761322]
[1768761292816,1.76121186,142.75,142.71,0.04761322]
[1768761293018,10.43889357,142.74,142.68,16.31532707]
[1768761293714,10.43889357,142.74,142.67,114.0]
[1768761294122,1.81058827,142.75,142.64,114.0]
[1768761294123,10.43889357,142.7,142.64,114.0]
[1768761294413,10.43889357,142.7,142.63,9.92695709]
[1768761294614,1.76121186,142.71,142.61,8.65073284]
[1768761294615,12.20010543,142.69,142.61,16.23985709]
[1768761295214,12.20010543,142.69,142.64,0.04747246]
[1768761295430,0.05368468,142.66,142.64,0.04747246]
[1768761295820,10.43889357,142.69,142.64,0.04747246]
[1768761296526,18.50900543,142.71,142.64,0.04747246]
[1768761296726,10.43889357,142.7,142.64,0.04747246]
[1768761298321,16.74809357,142.7,142.64,0.04747246]
[1768761298520,10.43889357,142.69,142.64,0.04747246]
[1768761299225,12.20010543,142.69,142.64,0.04747246]
[1768761300425,10.43889357,142.68,142.61,9.92695709]
[1768761300616,10.48570509,142.68,142.59,114.0]
[1768761300819,10.43889357,142.66,142.59,123.92695709]
[1768761301121,12.20010543,142.68,142.6,9.92695709]
[1768761301326,12.20010543,142.68,142.6,11.68816895]
[1768761301526,10.43889357,142.68,142.6,11.68816895]
[1768761304532,1.76121186,142.69,142.61,9.92695709]
[1768761304831,10.43889357,142.7,142.63,9.97473662]
[1768761305529,16.74819357,142.7,142.63,9.97473662]
[1768761307028,10.43889357,142.69,142.63,9.97473662]
[1768761307234,18.50980543,142.69,142.63,9.97473662]
[1768761307832,16.74859357,142.69,142.63,9.97473662]
[1768761308034,18.50890543,142.71,142.63,9.97473662]
[1768761308534,18.50890543,142.71,142.63,9.92695709]
[1768761308836,18.50890543,142.71,142.66,0.05363858]
[1768761309137,10.43889357,142.7,142.66,0.05363858]
[1768761310943,98.1246,142.73,142.62,114.0]
[1768761310944,12.20010543,142.69,142.62,114.0]
[1768761311234,12.25199943,142.69,142.61,123.92695709]
[1768761311433,12.25199943,142.69,142.61,9.92695709]
[1768761312637,10.43889357,142.66,142.59,123.92695709]
[1768761313740,0.04615678,142.64,142.59,123.92695709]
[1768761315842,10.48505035,142.64,142.59,114.0]
[1768761316236,16.79675035,142.64,142.57,9.92695709]
[1768761316435,10.43889357,142.63,142.57,9.92695709]
[1768761316735,10.43889357,142.63,142.55,123.92695709]
[1768761317042,10.43889357,142.62,142.55,123.92695709]
[1768761317641,0.04579976,142.6,142.55,123.92695709]
[1768761317843,0.04579976,142.6,142.55,9.92695709]
[1768761324349,0.04579976,142.6,142.57,10.50881227]
[1768761324551,6.3132,142.61,142.57,10.50881227]
[1768761325350,6.3125,142.63,142.57,10.50881227]
[1768761325942,0.05026119,142.61,142.57,10.50881227]
[1768761331351,8.07506115,142.65,142.57,12.27237342]
[1768761331352,6.3115,142.65,142.57,12.27237342]
[1768761331556,15.97164134,142.67,142.6,10.50881227]
[1768761332861,0.04837725,142.65,142.62,0.05395388]
[1768761336464,0.04837725,142.65,142.6,10.50881227]
[1768761338266,0.04837725,142.65,142.61,0.04460018]
[1768761340875,0.04837725,142.65,142.61,9.84857628]
[1768761345374,98.1095,142.75,142.64,9.8039761]
[1768761345375,10.45084473,142.73,142.64,9.8039761]
[1768761345567,10.45084473,142.73,142.65,11.56753725]
[1768761345969,12.21440588,142.73,142.65,9.8039761]
[1768761346468,10.45084473,142.73,142.65,9.8039761]
[1768761346665,1.76356115,142.72,142.68,0.04936006]
[1768761347270,16.75864473,142.73,142.68,0.04936006]
[1768761347471,1.76356115,142.72,142.68,0.04936006]
[1768761348270,12.21440588,142.72,142.68,0.04936006]
[1768761348470,12.21440588,142.72,142.65,9.8039761]
[1768761350273,0.04469277,142.7,142.65,9.8039761]
[1768761360388,0.04469277,142.7,142.65,11.56753725]
[1768761361374,0.04469277,142.7,142.65,9.8039761]
[1768761368582,0.04469277,142.7,142.64,123.89458686]
[1768761368583,10.08537528,142.7,142.64,123.89458686]
[1768761369591,16.39457528,142.7,142.64,123.89458686]
[1768761371495,10.04068251,142.68,142.62,9.89458686]
[1768761372290,0.04829595,142.66,142.62,9.89458686]
[1768761372689,0.04829595,142.66,142.6,9.89458686]
[1768761376507,0.04829595,142.66,142.6,11.65814801]
[1768761382209,6.3098,142.69,142.61,10.14447764]
[1768761382408,6.3098,142.69,142.63,10.14447764]
[1768761382608,16.88783445,142.69,142.63,10.14447764]
[1768761382911,6.3102,142.68,142.63,10.14447764]
[1768761383809,16.88823445,142.68,142.63,10.14447764]
[1768761384108,10.57803445,142.68,142.64,0.04797209]
[1768761386799,12.3415956,142.68,142.61,10.14447764]
[1768761387003,12.34032691,142.68,142.61,10.14447764]
[1768761387804,10.57803445,142.67,142.61,10.14447764]
[1768761388703,0.04577558,142.65,142.61,10.14447764]
[1768761411731,10.57803445,142.67,142.61,10.14447764]
[1768761411933,10.57803445,142.67,142.62,0.04541156]
[1768761418034,16.88863445,142.67,142.62,0.04541156]
[1768761420340,6.311,142.66,142.62,0.04541156]
[1768761420630,11.36278718,142.65,142.59,9.64455766]
[1768761421834,6.3119,142.64,142.59,9.64455766]
[1768761422028,0.05089443,142.63,142.59,9.64455766]
[1768761423938,6.3112,142.66,142.59,11.40685012]
[1768761424240,6.3112,142.66,142.61,9.64455766]
[1768761425736,6.3103,142.68,142.61,9.64455766]
[1768761426635,15.91079472,142.68,142.63,0.04946808]
[1768761437860,9.60049472,142.67,142.63,0.04946808]
[1768761438051,11.36278718,142.67,142.6,123.64455766]
[1768761438555,11.36278718,142.67,142.6,114.0]
[1768761439560,9.64674139,142.65,142.6,114.0]
[1768761439861,15.95814139,142.65,142.58,9.64455766]
[1768761442265,10.05386963,142.64,142.58,9.64455766]
[1768761443059,10.05386963,142.63,142.56,139.52090165]
[1768761444061,10.05386963,142.63,142.56,149.21892474]
[1768761444265,0.04631819,142.61,142.56,149.21892474]
[1768761450261,16.41348782,142.61,142.56,149.21892474]
[1768761450464,11.86379011,142.61,142.54,123.69802309]
[1768761450663,10.10018782,142.61,142.55,9.69802309]
[1768761451470,10.10018782,142.61,142.57,0.04514328]
[1768761452968,16.41338782,142.61,142.57,0.04514328]
[1768761454075,16.41338782,142.61,142.55,9.69802309]
[1768761454977,6.3137,142.6,142.55,9.69802309]
[1768761461386,10.52530531,142.59,142.53,10.61180117]
[1768761462287,0.05396395,142.57,142.53,10.61180117]
[1768761480290,10.30013607,142.57,142.49,10.43705371]
[1768761480490,12.00977441,142.56,142.49,124.43705371]
[1768761480689,10.24617212,142.54,142.49,10.43705371]
[1768761480889,12.00977441,142.54,142.49,10.43705371]
[1768761481294,12.05616523,142.54,142.49,10.43705371]
[1768761481799,10.29256294,142.54,142.49,10.43705371]
[1768761482888,0.04639082,142.54,142.49,10.43705371]
[1768761493004,10.29256294,142.54,142.49,10.43705371]
[1768761497110,10.29256294,142.54,142.45,6.3201]
[1768761497111,10.24617212,142.53,142.47,10.43705371]
[1768761497904,0.04570975,142.51,142.47,10.43705371]
[1768761502313,16.56267212,142.54,142.47,10.43705371]
[1768761503610,0.04673609,142.52,142.47,10.43705371]
[1768761513526,0.04673609,142.52,142.47,12.2027439]
[1768761520725,0.04673609,142.52,142.47,10.43705371]
[1768761520919,0.04673609,142.52,142.47,12.2027439]
[1768761522332,0.04673609,142.52,142.47,10.43705371]
[1768761523832,6.36383609,142.52,142.47,10.43705371]
[1768761524334,16.3370896,142.52,142.45,9.95820146]
[1768761526237,6.36383609,142.52,142.47,9.95820146]
[1768761527537,0.04673609,142.52,142.47,9.95820146]
[1768761527837,9.97325351,142.56,142.49,9.95820146]
[1768761528032,9.97325351,142.56,142.49,11.72389165]
[1768761528828,16.28865351,142.56,142.49,11.72389165]
[1768761529030,16.28865351,142.56,142.51,0.05097089]
[1768761529433,16.28865351,142.56,142.51,10.00917235]
[1768761529632,18.0534437,142.58,142.51,10.00917235]
[1768761530337,6.3145,142.58,142.51,10.00917235]
[1768761530538,6.3145,142.58,142.51,11.77486254]
[1768761530733,6.3145,142.58,142.51,10.00917235]
[1768761542154,6.3145,142.58,142.51,11.77486254]
[1768761549058,6.3145,142.58,142.51,10.00917235]
[1768761551960,16.08314681,142.58,142.51,10.00917235]
[1768761574566,10.42904609,142.57,142.51,10.00917235]
[1768761577578,10.42904609,142.57,142.51,0.05097089]
[1768761578578,16.31164445,142.56,142.51,0.05097089]
[1768761579073,16.31164445,142.56,142.5,123.63723704]
[1768761579474,16.31164445,142.56,142.52,0.04660678]
[1768761580772,16.31104445,142.58,142.52,0.04660678]
[1768761580969,16.31104445,142.58,142.52,9.68384382]
[1768761583467,9.99624445,142.57,142.52,0.04660678]
[1768761587076,9.99624445,142.57,142.52,9.68384382]
[1768761587883,9.99624445,142.59,142.52,9.68384382]
[1768761592178,11.7608088,142.59,142.52,9.68384382]
[1768761592379,9.99624445,142.59,142.52,9.68384382]
[1768761596284,16.31024445,142.59,142.52,9.68384382]
[1768761598080,96.70664395,142.67,142.57,9.88218781]
[1768761598284,9.5992945,142.62,142.54,11.64675216]
[1768761598483,11.36385885,142.62,142.54,9.88218781]
[1768761598891,11.36385885,142.62,142.57,0.04439548]
[1768761599793,15.9124945,142.61,142.57,0.04439548]
[1768761600794,15.9124945,142.61,142.54,9.88218781]
[1768761600795,9.5992945,142.6,142.54,9.88218781]
[1768761601393,9.5992945,142.59,142.51,122.65426234]
[1768761601594,9.5992945,142.57,142.5,123.88218781]
[1768761602191,9.5992945,142.57,142.51,9.88218781]
[1768761602896,15.9142945,142.57,142.51,9.88218781]
[1768761608211,0.04716583,142.55,142.51,9.88218781]
[1768761617717,0.04716583,142.55,142.5,114.0]
[1768761618117,0.04716583,142.55,142.49,130.20048781]
[1768761618620,0.04716583,142.55,142.5,9.88218781]
[1768761620020,9.5992945,142.54,142.48,123.88218781]
[1768761620222,0.04716583,142.55,142.49,9.88218781]
[1768761620417,9.5992945,142.6,142.49,9.88218781]
[1768761620612,11.36385885,142.58,142.48,122.65426234]
[1768761620821,11.36385885,142.56,142.51,0.0463403]
[1768761621217,11.36385885,142.56,142.48,9.88218781]
[1768761621617,9.5992945,142.55,142.48,9.88218781]
[1768761621822,9.5992945,142.55,142.51,0.04807439]
[1768761623214,15.9151945,142.55,142.51,0.04807439]
[1768761623828,15.9151945,142.55,142.48,9.88218781]
[1768761625227,0.0470117,142.53,142.48,9.88218781]
[1768761629926,10.0183,142.53,142.48,9.88218781]
[1768761630124,11.78385956,142.53,142.48,9.88218781]
[1768761630627,9.9712883,142.58,142.52,10.23823147]
[1768761631018,11.73684786,142.61,142.52,12.00379103]
[1768761631220,11.73684786,142.61,142.52,10.23823147]
[1768761631829,6.3137,142.6,142.52,10.23823147]
[1768761632130,9.9712883,142.59,142.55,0.04590893]
[1768761632630,6.3137,142.6,142.55,0.04590893]
[1768761632819,9.9712883,142.61,142.55,10.2841404]
[1768761634731,16.2845883,142.61,142.55,10.2841404]
[1768761636021,18.05014786,142.61,142.55,10.2841404]
[1768761637625,6.3137,142.6,142.55,10.2841404]
[1768761638535,16.0826149,142.6,142.55,10.2841404]
[1768761641334,9.7689149,142.6,142.55,10.2841404]
[1768761642834,16.0826149,142.6,142.55,10.2841404]
[1768761645828,9.7689149,142.59,142.55,0.04590893]
[1768761646222,17.84867446,142.59,142.55,0.04590893]
[1768761646427,9.7689149,142.58,142.52,124.2296333]
[1768761646623,9.81698999,142.58,142.52,10.2296333]
[1768761649327,0.04807509,142.58,142.52,10.2296333]
[1768761659336,0.04807509,142.58,142.53,10.29197381]
[1768761669848,1.76555956,142.61,142.53,10.29197381]
[1768761670050,1.76555956,142.61,142.54,10.34166522]
[1768761670244,12.17741101,142.61,142.54,10.34166522]
[1768761670751,18.49061101,142.61,142.54,10.34166522]
[1768761672852,12.17741101,142.59,142.54,0.04969141]
[1768761673244,12.17741101,142.59,142.53,114.0]
[1768761673754,18.49151101,142.59,142.55,0.04677928]
[1768761675260,16.72595145,142.59,142.55,0.04677928]
[1768761675454,10.41185145,142.59,142.55,0.04677928]
[1768761678461,6.3136,142.6,142.55,0.04677928]
[1768761678865,16.72545145,142.6,142.55,0.04677928]
[1768761680263,1.76555956,142.59,142.55,0.04677928]
[1768761680459,16.72545145,142.6,142.55,0.04677928]
[1768761686466,6.3142,142.59,142.55,0.04677928]
[1768761686772,16.19870496,142.59,142.55,0.04677928]
[1768761690373,6.3145,142.58,142.55,0.04677928]
[1768761699178,16.54474985,142.58,142.55,0.04677928]
[1768761701280,10.23024985,142.56,142.51,123.8460744]
[1768761701480,10.23024985,142.56,142.51,9.8460744]
[1768761702583,0.0509706,142.55,142.51,9.8460744]
[1768761702778,10.23024985,142.56,142.51,9.8460744]
[1768761702978,10.23024985,142.56,142.52,0.05160716]
[1768761703473,8.07919579,142.57,142.52,9.89768156]
[1768761703680,16.54524985,142.57,142.52,9.89768156]
[1768761705986,16.54524985,142.57,142.52,0.05160716]
[1768761706180,10.23024985,142.56,142.52,0.05160716]
[1768761710579,16.54564985,142.56,142.52,0.05160716]
[1768761713199,6.3158,142.55,142.52,0.05160716]
[1768761720403,10.23024985,142.56,142.52,0.05160716]
[1768761728109,16.54564985,142.56,142.52,0.05160716]
[1768761731014,6.3158,142.55,142.52,0.05160716]
[1768761731313,16.12555398,142.55,142.49,123.82804882]
[1768761731504,9.85494455,142.55,142.49,114.0]
[1768761731709,16.12595398,142.54,142.49,114.0]
[1768761734318,9.80975398,142.54,142.49,114.0]
[1768761735617,9.80975398,142.54,142.48,125.59224461]
[1768761737421,9.80975398,142.54,142.48,134.31382837]
[1768761739923,9.80975398,142.54,142.48,140.63252837]
[1768761743221,1.03619057,142.54,142.48,140.63252837]
[1768761743422,1.03619057,142.54,142.49,10.41366693]
[1768761753427,7.35239057,142.54,142.49,10.41366693]
[1768761753726,0.04519057,142.55,142.49,12.17885537]
[1768761754628,6.36099057,142.55,142.49,10.41366693]
[1768761754927,0.04519057,142.55,142.51,10.41366693]
[1768761773440,1.76518844,142.6,142.52,10.29406422]
[1768761773745,1.76518844,142.6,142.53,10.29406422]
[1768761774146,11.78621652,142.6,142.53,10.29406422]
[1768761774844,16.33492808,142.6,142.55,0.05109464]
[1768761780345,16.33492808,142.6,142.55,10.34515886]
[1768761781947,16.33392808,142.62,142.55,10.34515886]
[1768761782441,16.33392808,142.62,142.55,10.29406422]
[1768761782848,16.33392808,142.62,142.57,0.0456334]
[1768761783848,99.94918844,142.64,142.59,10.29406422]
[1768761783849,6.3121,142.64,142.59,10.29406422]
[1768761784042,10.02102808,142.64,142.59,10.29406422]
[1768761784242,10.02102808,142.64,142.57,10.29406422]
[1768761784743,10.02102808,142.64,142.59,0.04521807]
[1768761791753,10.02102808,142.64,142.59,10.33928229]
[1768761793454,10.02102808,142.66,142.59,10.33928229]
[1768761796362,11.78621652,142.66,142.59,10.33928229]
[1768761797257,10.02102808,142.66,142.59,10.33928229]
[1768761797554,11.78621652,142.66,142.59,10.33928229]
[1768761801763,11.78621652,142.66,142.59,124.33928229]
[1768761801956,11.78621652,142.66,142.6,10.29406422]
[1768761802453,10.02102808,142.66,142.6,10.29406422]
[1768761803058,12.3288531,142.68,142.6,10.29406422]
[1768761803260,12.3288531,142.68,142.61,10.89176727]
[1768761803851,12.3288531,142.68,142.63,0.04804666]
[1768761805252,10.56366466,142.68,142.63,0.04804666]
[1768761807264,6.3092,142.7,142.6,120.3133]
[1768761807265,10.56366466,142.64,142.6,114.0]
[1768761807566,10.56366466,142.64,142.59,10.89176727]
[1768761808665,0.0495905,142.63,142.59,10.89176727]
[1768761825882,17.16765409,142.66,142.59,10.89176727]
[1768761826083,17.16765409,142.66,142.6,10.33224045]
[1768761830989,10.85655409,142.66,142.6,10.33224045]
[1768761834087,17.16755409,142.66,142.6,10.33224045]
[1768761838987,6.3116,142.65,142.6,10.33224045]
[1768761849501,10.85655409,142.66,142.6,10.33224045]
[1768761852003,6.3108,142.67,142.6,10.33224045]
[1768761852303,10.61416185,142.68,142.6,10.33224045]
[1768761854000,10.61416185,142.68,142.61,10.31820744]
[1768761854806,10.61416185,142.68,142.63,0.05283093]
[1768761856105,16.92426185,142.68,142.63,0.05283093]
[1768761858212,10.55417195,142.67,142.63,0.05283093]
[1768761862916,9.83129204,142.66,142.63,0.05283093]
[1768761863820,9.87832882,142.66,142.6,124.22542382]
[1768761864016,9.87832882,142.66,142.6,10.22542382]
[1768761866221,9.87832882,142.66,142.62,0.05028593]
[1768761867019,16.18932882,142.66,142.62,0.05028593]
[1768761869522,9.83129204,142.65,142.62,0.05028593]
[1768761869721,9.83129204,142.65,142.58,132.30230136]
[1768761870017,9.83129204,142.65,142.59,10.22542382]
[1768761871024,0.04921871,142.63,142.59,10.22542382]
[1768761871826,9.88051075,142.63,142.55,10.22542382]
[1768761872023,11.59416958,142.62,142.55,10.22542382]
[1768761873022,0.05234876,142.6,142.55,10.22542382]
[1768761873724,9.8836408,142.6,142.53,18.94700758]
[1768761873924,9.8836408,142.6,142.53,10.22542382]
[1768761875929,16.1973408,142.6,142.53,10.22542382]